bitfinex-derivatives/quotes_BTCF0:USTF0_20250630
["timestamp","ask_amount","ask_price","bid_price","bid_amount"]
[1751247684258,1.06127812,108850.0,108840.0,0.2487544]
[1751247684553,1.06127812,108850.0,108840.0,0.6501648]
[1751247687249,0.46165812,108850.0,108840.0,0.6501648]
[1751247691254,0.44398294,108850.0,108840.0,0.6501648]
[1751247696360,0.37045036,108850.0,108840.0,0.6501648]
[1751247696559,0.40225036,108850.0,108840.0,0.6501648]
[1751247697261,0.40225036,108850.0,108840.0,0.3556596]
[1751247697466,0.81249646,108850.0,108840.0,0.3556596]
[1751247698072,0.81249646,108850.0,108840.0,0.5563648]
[1751247698373,0.61179126,108850.0,108840.0,0.5563648]
[1751247704178,0.61179126,108850.0,108840.0,0.1549544]
[1751247704379,0.61179126,108850.0,108840.0,0.5563648]
[1751247705876,0.61179126,108850.0,108840.0,0.1549544]
[1751247706178,0.61179126,108850.0,108840.0,0.5563648]
[1751247706978,0.61179126,108850.0,108840.0,0.1549544]
[1751247707178,0.61179126,108850.0,108840.0,0.5563648]
[1751247710880,0.43485036,108850.0,108840.0,0.5563648]
[1751247711075,0.40225036,108850.0,108840.0,0.6192648]
[1751247711380,0.40225036,108850.0,108840.0,0.6493648]
[1751247712481,0.54919126,108850.0,108840.0,0.6493648]
[1751247713681,0.54919126,108850.0,108840.0,0.2479544]
[1751247713881,0.54919126,108850.0,108840.0,0.6493648]
[1751247714680,0.78109646,108850.0,108840.0,0.5864648]
[1751247714880,0.61319126,108850.0,108840.0,0.5864648]
[1751247721786,0.3608,108850.0,108840.0,0.78717]
[1751247721992,0.65572968,108860.0,108850.0,0.1469409]
[1751247722287,0.65572968,108860.0,108850.0,0.4431461]
[1751247722488,0.68662968,108860.0,108850.0,0.4431461]
[1751247722686,0.71912968,108860.0,108850.0,0.4431461]
[1751247723292,1.24935628,108860.0,108850.0,0.4451461]
[1751247723987,1.24931628,108860.0,108850.0,0.4128461]
[1751247724187,1.28151628,108860.0,108850.0,0.4128461]
[1751247725688,1.29063758,108860.0,108850.0,0.4128461]
[1751247725990,1.29063758,108860.0,108850.0,0.3496461]
[1751247726187,1.49134278,108860.0,108850.0,0.3496461]
[1751247726588,1.29063758,108860.0,108850.0,0.3496461]
[1751247726989,1.49134278,108860.0,108850.0,0.3496461]
[1751247727492,1.49134278,108860.0,108850.0,0.3506461]
[1751247731293,1.50901796,108860.0,108850.0,0.3506461]
[1751247733795,1.30831276,108860.0,108850.0,0.3506461]
[1751247734091,1.50901796,108860.0,108850.0,0.3506461]
[1751247735298,1.4178102,108860.0,108850.0,0.3506461]
[1751247736096,1.50901796,108860.0,108850.0,0.3506461]
[1751247737196,1.4178102,108860.0,108850.0,0.3506461]
[1751247737401,1.50901796,108860.0,108850.0,0.3506461]
[1751247740198,1.14821796,108860.0,108850.0,0.3506461]
[1751247740402,1.50901796,108860.0,108850.0,0.3506461]
[1751247740704,1.30831276,108860.0,108850.0,0.3506461]
[1751247741307,1.38177853,108860.0,108850.0,0.3506461]
[1751247741506,1.29057077,108860.0,108850.0,0.3506461]
[1751247742504,1.49127597,108860.0,108850.0,0.3506461]
[1751247742808,1.29057077,108860.0,108850.0,0.3506461]
[1751247743009,0.65895077,108860.0,108850.0,0.3506461]
[1751247743203,1.0830488,108860.0,108850.0,0.4452461]
[1751247745105,1.314054,108860.0,108850.0,0.4452461]
[1751247745614,1.346954,108860.0,108850.0,0.4452461]
[1751247750418,1.346954,108860.0,108850.0,0.3506461]
[1751247750609,1.65302497,108860.0,108850.0,0.1499409]
[1751247751210,1.65302497,108860.0,108850.0,0.3506461]
[1751247752613,1.65302497,108860.0,108850.0,0.1499409]
[1751247752819,1.65302497,108860.0,108850.0,0.3506461]
[1751247757821,1.65302497,108860.0,108850.0,0.1499409]
[1751247758022,1.65302497,108860.0,108850.0,0.3506461]
[1751247760326,1.45231977,108860.0,108850.0,0.3506461]
[1751247761824,1.25161457,108860.0,108850.0,0.3506461]
[1751247762027,1.45231977,108860.0,108850.0,0.3506461]
[1751247762727,1.42041977,108860.0,108850.0,0.3506461]
[1751247762923,0.98797977,108860.0,108850.0,0.4463461]
[1751247763125,1.55333977,108860.0,108850.0,0.4463461]
[1751247763325,1.35263457,108860.0,108850.0,0.4463461]
[1751247763523,0.748854,108860.0,108850.0,0.4463461]
[1751247763724,1.416634,108860.0,108850.0,0.4463461]
[1751247764628,1.2159288,108860.0,108850.0,0.4463461]
[1751247765429,1.416634,108860.0,108850.0,0.4463461]
[1751247766324,1.2159288,108860.0,108850.0,0.4463461]
[1751247766526,1.416634,108860.0,108850.0,0.4463461]
[1751247770143,1.416634,108860.0,108850.0,0.2456409]
[1751247770340,1.416634,108860.0,108850.0,0.4463461]
[1751247770540,1.448234,108860.0,108850.0,0.4463461]
[1751247771336,1.52169977,108860.0,108850.0,0.4463461]
[1751247771536,1.53944176,108860.0,108850.0,0.4463461]
[1751247773439,1.57224176,108860.0,108850.0,0.4463461]
[1751247775340,1.57224176,108860.0,108850.0,0.3506461]
[1751247775737,1.60234176,108860.0,108850.0,0.3506461]
[1751247776338,1.80304696,108860.0,108850.0,0.3506461]
[1751247777442,1.60234176,108860.0,108850.0,0.3506461]
[1751247780043,1.60234176,108860.0,108850.0,0.1499409]
[1751247780340,1.60234176,108860.0,108850.0,0.3506461]
[1751247780530,1.80304696,108860.0,108850.0,0.3506461]
[1751247781040,1.60234176,108860.0,108850.0,0.3506461]
[1751247781340,1.58465145,108860.0,108850.0,0.3506461]
[1751247782738,1.58465145,108860.0,108850.0,0.1499409]
[1751247782939,1.58465145,108860.0,108850.0,0.3506461]
[1751247783244,1.38394625,108860.0,108850.0,0.3506461]
[1751247783445,1.58465145,108860.0,108850.0,0.3506461]
[1751247786648,1.58465145,108860.0,108850.0,0.1499409]
[1751247786947,1.58465145,108860.0,108850.0,0.3506461]
[1751247792550,1.58465145,108860.0,108850.0,0.1499409]
[1751247792849,1.58465145,108860.0,108850.0,0.3506461]
[1751247794947,1.38394625,108860.0,108850.0,0.3506461]
[1751247795148,1.58465145,108860.0,108850.0,0.3506461]
[1751247795947,1.45189145,108860.0,108850.0,0.3506461]
[1751247796153,1.58305145,108860.0,108850.0,0.3506461]
[1751247798756,1.38234625,108860.0,108850.0,0.3506461]
[1751247799154,1.58305145,108860.0,108850.0,0.3506461]
[1751247800556,1.58253145,108860.0,108850.0,0.3506461]
[1751247800755,0.88657145,108860.0,108850.0,0.3506461]
[1751247800949,1.31892625,108860.0,108850.0,0.3506461]
[1751247801155,1.51963145,108860.0,108850.0,0.4463461]
[1751247801951,0.82367145,108860.0,108850.0,0.4463461]
[1751247802345,1.31888625,108860.0,108850.0,0.4463461]
[1751247802649,1.51959145,108860.0,108850.0,0.4463461]
[1751247803255,0.95567145,108860.0,108850.0,0.4463461]
[1751247803455,1.51959145,108860.0,108850.0,0.4463461]
[1751247803755,1.31888625,108860.0,108850.0,0.4463461]
[1751247804055,1.51959145,108860.0,108850.0,0.4463461]
[1751247804851,1.51959145,108860.0,108850.0,0.2456409]
[1751247805054,1.51959145,108860.0,108850.0,0.4463461]
[1751247805750,0.44443875,108860.0,108850.0,0.4463461]
[1751247805955,1.15528625,108860.0,108850.0,0.4463461]
[1751247806551,1.35599145,108860.0,108850.0,0.4463461]
[1751247807158,1.15528625,108860.0,108850.0,0.4463461]
[1751247807352,1.35599145,108860.0,108850.0,0.4463461]
[1751247808052,1.15528625,108860.0,108850.0,0.4463461]
[1751247810359,1.35599145,108860.0,108850.0,0.4463461]
[1751247814266,0.59136625,108860.0,108850.0,0.4463461]
[1751247814564,1.15524625,108860.0,108850.0,0.4463461]
[1751247820367,1.35595145,108860.0,108850.0,0.4463461]
[1751247821067,1.15524625,108860.0,108850.0,0.4463461]
[1751247821267,1.18564625,108860.0,108850.0,0.4463461]
[1751247821466,1.1121288,108860.0,108850.0,0.4463461]
[1751247822268,1.20333656,108860.0,108850.0,0.4463461]
[1751247823870,1.1856443,108860.0,108850.0,0.4463461]
[1751247826171,1.1121288,108860.0,108850.0,0.4463461]
[1751247827469,1.1121288,108860.0,108850.0,0.1814409]
[1751247827666,1.1121288,108860.0,108850.0,0.3506461]
[1751247827667,1.1423288,108860.0,108850.0,0.3506461]
[1751247827968,1.373834,108860.0,108850.0,0.3506461]
[1751247828161,1.373834,108860.0,108850.0,0.1499409]
[1751247828365,1.373834,108860.0,108850.0,0.3506461]
[1751247829266,1.373834,108860.0,108850.0,0.1499409]
[1751247829466,1.373834,108860.0,108850.0,0.3506461]
[1751247829667,1.5745392,108860.0,108850.0,0.3506461]
[1751247829974,1.66574696,108860.0,108850.0,0.3506461]
[1751247830368,1.46504176,108860.0,108850.0,0.3506461]
[1751247830564,1.26433656,108860.0,108850.0,0.3506461]
[1751247830766,1.46504176,108860.0,108850.0,0.3506461]
[1751247830967,1.46504176,108860.0,108850.0,0.1499409]
[1751247831265,1.46504176,108860.0,108850.0,0.3506461]
[1751247831462,1.64806225,108860.0,108850.0,0.1499409]
[1751247831766,1.64806225,108860.0,108850.0,0.3506461]
[1751247832274,1.44735705,108860.0,108850.0,0.3506461]
[1751247832977,1.373834,108860.0,108850.0,0.3506461]
[1751247833272,1.44735946,108860.0,108850.0,0.3506461]
[1751247833670,1.44735937,108860.0,108850.0,0.3506461]
[1751247838068,1.24665417,108860.0,108850.0,0.3506461]
[1751247838268,1.44735937,108860.0,108850.0,0.3506461]
[1751247838677,1.24665417,108860.0,108850.0,0.3506461]
[1751247838976,1.44735937,108860.0,108850.0,0.3506461]
[1751247840275,1.24665417,108860.0,108850.0,0.3506461]
[1751247840589,1.44735937,108860.0,108850.0,0.3506461]
[1751247840773,1.373834,108860.0,108850.0,0.3506461]
[1751247842878,1.44735937,108860.0,108850.0,0.3506461]
[1751247843673,1.44735937,108860.0,108850.0,0.1499409]
[1751247843878,1.44735937,108860.0,108850.0,0.3506461]
[1751247844576,1.24665417,108860.0,108850.0,0.3506461]
[1751247844979,1.44735937,108860.0,108850.0,0.3506461]
[1751247845379,1.373834,108860.0,108850.0,0.3506461]
[1751247846080,1.5745392,108860.0,108850.0,0.3506461]
[1751247846582,1.5745392,108860.0,108850.0,0.1499409]
[1751247846783,1.5745392,108860.0,108850.0,0.003]
[1751247847276,1.5745392,108860.0,108850.0,0.2037052]
[1751247847477,1.5745392,108860.0,108850.0,0.003]
[1751247847676,1.64805465,108860.0,108850.0,0.003]
[1751247852284,1.64805465,108860.0,108850.0,0.1499409]
[1751247853785,1.5745392,108860.0,108850.0,0.1499409]
[1751247853983,1.64805054,108860.0,108850.0,0.1499409]
[1751247854184,1.64805054,108860.0,108850.0,0.3506461]
[1751247854385,1.64805054,108860.0,108850.0,0.1499409]
[1751247854587,1.64805054,108860.0,108850.0,0.3506461]
[1751247857290,1.64805054,108860.0,108850.0,0.003]
[1751247859288,1.5745392,108860.0,108850.0,0.003]
[1751247862285,1.5745392,108860.0,108850.0,0.149941]
[1751247862491,1.64805867,108860.0,108850.0,0.149941]
[1751247863391,1.78057867,108860.0,108850.0,0.149941]
[1751247865491,1.78057867,108860.0,108850.0,0.3506462]
[1751247865691,1.78057867,108860.0,108850.0,0.149941]
[1751247866288,1.18640827,108860.0,108850.0,0.3506462]
[1751247866493,1.35671347,108860.0,108850.0,0.4453462]
[1751247866983,1.38891347,108860.0,108850.0,0.4453462]
[1751247867296,1.58961867,108860.0,108850.0,0.4453462]
[1751247867486,1.58961867,108860.0,108850.0,0.2984052]
[1751247867686,1.41981347,108860.0,108850.0,0.2984052]
[1751247867993,1.62051867,108860.0,108850.0,0.4453462]
[1751247868182,1.5469992,108860.0,108850.0,0.4453462]
[1751247869396,1.5469992,108860.0,108850.0,0.2984052]
[1751247869593,1.63820696,108860.0,108850.0,0.2984052]
[1751247870292,1.63820696,108860.0,108850.0,0.4453462]
[1751247871405,1.5469992,108860.0,108850.0,0.4453462]
[1751247871902,1.67538033,108860.0,108850.0,0.4453462]
[1751247872504,1.67538033,108860.0,108850.0,0.2984052]
[1751247872704,1.67538033,108860.0,108850.0,0.003]
[1751247872904,1.65261583,108860.0,108850.0,0.003]
[1751247874303,1.65261583,108860.0,108850.0,0.2037052]
[1751247875502,1.65261583,108860.0,108850.0,0.003]
[1751247878207,1.67099498,108860.0,108850.0,0.003]
[1751247880004,1.5790992,108860.0,108850.0,0.003]
[1751247880601,1.5790992,108860.0,108850.0,0.3506462]
[1751247881306,1.65260982,108860.0,108850.0,0.2037052]
[1751247881704,1.65260982,108860.0,108850.0,0.003]
[1751247883107,1.78512982,108860.0,108850.0,0.003]
[1751247883309,1.78512982,108860.0,108850.0,0.149941]
[1751247886511,1.80351498,108860.0,108850.0,0.003]
[1751247886815,1.78512903,108860.0,108850.0,0.149941]
[1751247889214,1.78512903,108860.0,108850.0,0.2037052]
[1751247889414,1.78512903,108860.0,108850.0,0.3506462]
[1751247890907,1.78512903,108860.0,108850.0,0.2037052]
[1751247891817,1.78512903,108860.0,108850.0,0.3506462]
[1751247893115,1.78512903,108860.0,108850.0,0.149941]
[1751247893416,1.78512903,108860.0,108850.0,0.3506462]
[1751247894120,1.78512903,108860.0,108850.0,0.149941]
[1751247897022,1.78512903,108860.0,108850.0,0.003]
[1751247898118,2.14592903,108860.0,108850.0,0.003]
[1751247898323,2.0724192,108860.0,108850.0,0.003]
[1751247900127,1.6710088,108860.0,108850.0,0.003]
[1751247900425,2.0724192,108860.0,108850.0,0.003]
[1751247901628,2.16431498,108860.0,108850.0,0.003]
[1751247903826,1.76290458,108860.0,108850.0,0.149941]
[1751247904019,1.73080458,108860.0,108850.0,0.149941]
[1751247904218,1.93150978,108860.0,108850.0,0.212641]
[1751247904424,1.93150978,108860.0,108850.0,0.4133462]
[1751247905531,1.73080458,108860.0,108850.0,0.4133462]
[1751247905934,1.93150978,108860.0,108850.0,0.4133462]
[1751247906228,1.73080458,108860.0,108850.0,0.212641]
[1751247906433,1.86740978,108860.0,108850.0,0.4133462]
[1751247906625,0.82361708,108860.0,108850.0,0.4463462]
[1751247906831,1.59330432,108860.0,108850.0,0.4463462]
[1751247907023,1.50140854,108860.0,108850.0,0.4463462]
[1751247907432,0.95217604,108860.0,108850.0,0.4463462]
[1751247909133,1.71696124,108860.0,108850.0,0.4463462]
[1751247910236,1.643434,108860.0,108850.0,0.4463462]
[1751247910533,1.71696124,108860.0,108850.0,0.4463462]
[1751247911535,1.73532978,108860.0,108850.0,0.4463462]
[1751247912232,1.53462458,108860.0,108850.0,0.4463462]
[1751247914736,1.53462458,108860.0,108850.0,0.245641]
[1751247914935,1.86740978,108860.0,108850.0,0.4463462]
[1751247915331,1.66670458,108860.0,108850.0,0.4463462]
[1751247917334,2.06811498,108860.0,108850.0,0.003]
[1751247917539,2.16021498,108860.0,108850.0,0.003]
[1751247917940,2.16021498,108860.0,108850.0,0.2037052]
[1751247919942,2.0683192,108860.0,108850.0,0.2037052]
[1751247921443,2.14181322,108860.0,108850.0,0.2037052]
[1751247921940,2.14181322,108860.0,108850.0,0.003]
[1751247922841,2.14181322,108860.0,108850.0,0.2037052]
[1751247924739,1.94110802,108860.0,108850.0,0.2037052]
[1751247924941,2.14181322,108860.0,108850.0,0.2037052]
[1751247925141,2.0683192,108860.0,108850.0,0.2037052]
[1751247926139,2.0683192,108860.0,108850.0,0.003]
[1751247926741,1.867614,108860.0,108850.0,0.3506462]
[1751247927741,1.95948153,108860.0,108850.0,0.3506462]
[1751247927935,1.75869633,108860.0,108850.0,0.3506462]
[1751247928141,1.95940153,108860.0,108850.0,0.3506462]
[1751247928943,1.867534,108860.0,108850.0,0.3506462]
[1751247929744,1.95940153,108860.0,108850.0,0.3506462]
[1751247930644,1.75869633,108860.0,108850.0,0.3506462]
[1751247930845,1.95940153,108860.0,108850.0,0.3506462]
[1751247932246,1.26332153,108860.0,108850.0,0.3506462]
[1751247932448,1.95940153,108860.0,108850.0,0.3506462]
[1751247935464,1.66659633,108860.0,108850.0,0.3506462]
[1751247935763,1.66659633,108860.0,108850.0,0.4438462]
[1751247935960,0.97051633,108860.0,108850.0,0.4438462]
[1751247936160,1.66659633,108860.0,108850.0,0.4438462]
[1751247938665,1.5746888,108860.0,108850.0,0.4438462]
[1751247938965,1.64818097,108860.0,108850.0,0.4438462]
[1751247940257,1.5746888,108860.0,108850.0,0.4438462]
[1751247940659,1.6481836,108860.0,108850.0,0.4438462]
[1751247941366,1.5746888,108860.0,108850.0,0.4438462]
[1751247941865,1.5746888,108860.0,108850.0,0.243141]
[1751247942067,1.5746888,108860.0,108850.0,0.4438462]
[1751247942360,1.775394,108860.0,108850.0,0.4438462]
[1751247942565,0.8786488,108860.0,108850.0,0.4438462]
[1751247942754,1.36922121,108860.0,108850.0,0.6445514]
[1751247942952,1.36922121,108860.0,108850.0,0.4438462]
[1751247943168,1.51614871,108860.0,108850.0,0.4438462]
[1751247944868,1.51614871,108860.0,108850.0,0.243141]
[1751247945070,1.51614871,108860.0,108850.0,0.4438462]
[1751247950766,1.71685391,108860.0,108850.0,0.4438462]
[1751247951376,1.71685391,108860.0,108850.0,0.243141]
[1751247951577,2.01205911,108860.0,108850.0,0.149941]
[1751247951877,1.81135391,108860.0,108850.0,0.3506462]
[1751247956083,1.737854,108860.0,108850.0,0.3506462]
[1751247956376,1.81135391,108860.0,108850.0,0.3506462]
[1751247957178,1.81135391,108860.0,108850.0,0.149941]
[1751247957379,1.81135391,108860.0,108850.0,0.3506462]
[1751247958877,1.61064871,108860.0,108850.0,0.3506462]
[1751247959087,1.81135391,108860.0,108850.0,0.3506462]
[1751247961381,1.737854,108860.0,108850.0,0.3506462]
[1751247962086,1.82972153,108860.0,108850.0,0.3506462]
[1751247963585,2.03042673,108860.0,108850.0,0.3506462]
[1751247964380,1.82972153,108860.0,108850.0,0.3506462]
[1751247966588,2.03042673,108860.0,108850.0,0.149941]
[1751247966789,2.03042673,108860.0,108850.0,0.3506462]
[1751247967185,2.03042673,108860.0,108850.0,0.003]
[1751247967386,2.03042673,108860.0,108850.0,0.149941]
[1751247968096,2.03042673,108860.0,108850.0,0.3506462]
[1751247969687,2.03042673,108860.0,108850.0,0.2037052]
[1751247970282,2.03042673,108860.0,108850.0,0.003]
[1751247970488,0.146941,108850.0,108840.0,0.0329]
[1751247970689,0.1469545,108840.0,108830.0,0.38441]
[1751247970888,1.44005903,108840.0,108830.0,0.38441]
[1751247971389,1.3665597,108840.0,108830.0,0.38441]
[1751247971787,1.3665597,108840.0,108830.0,0.38841]
[1751247972292,1.1658545,108840.0,108830.0,0.38841]
[1751247972791,1.1658545,108840.0,108830.0,0.45291]
[1751247972991,1.3665597,108840.0,108830.0,0.45291]
[1751247973894,1.3665597,108840.0,108830.0,0.45591]
[1751247975694,1.1658545,108840.0,108830.0,0.45591]
[1751247975993,1.3665597,108840.0,108830.0,0.45591]
[1751247977795,1.3665597,108840.0,108830.0,0.2552048]
[1751247978096,1.3665597,108840.0,108830.0,0.45591]
[1751247980288,1.3342597,108840.0,108830.0,0.45591]
[1751247981199,1.3342597,108840.0,108830.0,0.2552048]
[1751247981400,1.3342597,108840.0,108830.0,0.45591]
[1751247987495,0.9711649,108840.0,108830.0,0.007]
[1751247987701,1.6992249,108840.0,108830.0,0.153968]
[1751247991008,1.2978145,108840.0,108830.0,0.153968]
[1751247991212,1.6992249,108840.0,108830.0,0.153968]
[1751247991597,1.0034649,108840.0,108830.0,0.3546732]
[1751247991805,1.2978145,108840.0,108830.0,0.3546732]
[1751247992007,1.4985197,108840.0,108830.0,0.3546732]
[1751247992407,1.4985197,108840.0,108830.0,0.153968]
[1751247992610,1.4985197,108840.0,108830.0,0.3546732]
[1751247993010,1.6992249,108840.0,108830.0,0.3546732]
[1751247996412,2.0600249,108840.0,108830.0,0.3546732]
[1751247998021,2.0600249,108840.0,108830.0,0.153968]
[1751247998319,2.0600249,108840.0,108830.0,0.3546732]
[1751247999220,1.6586545,108840.0,108830.0,0.3546732]
[1751247999420,1.8593597,108840.0,108830.0,0.3546732]
[1751247999626,1.8593597,108840.0,108830.0,0.007]
[1751248001616,1.8593597,108840.0,108830.0,0.153968]
[1751248002618,1.8593597,108840.0,108830.0,0.3546732]
[1751248003116,1.8593597,108840.0,108830.0,0.153968]
[1751248004126,0.91621383,108840.0,108830.0,0.3546732]
[1751248004324,0.8427145,108840.0,108830.0,0.4477732]
[1751248005027,0.95567003,108850.0,108840.0,0.1469545]
[1751248005228,1.65143003,108850.0,108840.0,0.4139597]
[1751248006126,1.65143003,108850.0,108840.0,0.4159597]
[1751248007528,1.65143003,108850.0,108840.0,0.4169597]
[1751248008526,1.65143003,108850.0,108840.0,0.2700052]
[1751248008823,1.65143003,108850.0,108840.0,0.4169597]
[1751248010528,1.65143003,108850.0,108840.0,0.2700052]
[1751248011227,1.65143003,108850.0,108840.0,0.4169597]
[1751248011529,1.5779307,108850.0,108840.0,0.2700052]
[1751248012025,1.70029148,108850.0,108840.0,0.0693]
[1751248014026,1.70029148,108850.0,108840.0,0.003]
[1751248014233,1.6084307,108850.0,108840.0,0.003]
[1751248014935,1.6084307,108850.0,108830.0,0.3794721]
[1751248014936,0.1469545,108840.0,108830.0,0.3794721]
[1751248015127,1.09702555,108840.0,108830.0,0.3794721]
[1751248016032,1.09702555,108840.0,108830.0,0.3824721]
[1751248017236,1.09702555,108840.0,108830.0,0.3854721]
[1751248018940,1.09702555,108840.0,108830.0,0.1847669]
[1751248019139,1.09702555,108840.0,108830.0,0.3854721]
[1751248020133,0.89632035,108840.0,108830.0,0.3854721]
[1751248020640,0.89632035,108840.0,108830.0,0.1847669]
[1751248020840,0.89632035,108840.0,108830.0,0.3854721]
[1751248021739,0.89632035,108840.0,108830.0,0.3536721]
[1751248021938,1.09702555,108840.0,108830.0,0.3536721]
[1751248022139,1.17051444,108840.0,108830.0,0.3536721]
[1751248022343,1.07865379,108840.0,108830.0,0.3536721]
[1751248025445,0.87794859,108840.0,108830.0,0.3536721]
[1751248025944,0.87794859,108840.0,108830.0,0.2067052]
[1751248026149,1.07865379,108840.0,108830.0,0.006]
[1751248028649,0.67724339,108840.0,108830.0,0.006]
[1751248028842,1.07865379,108840.0,108830.0,0.006]
[1751248031051,0.87794859,108840.0,108830.0,0.3536732]
[1751248031345,0.77822339,108840.0,108830.0,0.3536732]
[1751248031551,1.27684339,108840.0,108830.0,0.4166732]
[1751248031749,1.27684339,108840.0,108830.0,0.4487732]
[1751248032142,1.47754859,108840.0,108830.0,0.248068]
[1751248032350,1.47754859,108840.0,108830.0,0.4487732]
[1751248032552,1.50944859,108840.0,108830.0,0.4487732]
[1751248033451,1.47754859,108840.0,108830.0,0.4487732]
[1751248035153,0.78194859,108840.0,108830.0,0.4487732]
[1751248035354,1.47754859,108840.0,108830.0,0.4487732]
[1751248039956,1.47854859,108840.0,108830.0,0.4457732]
[1751248040356,1.47854859,108840.0,108830.0,0.4427732]
[1751248042060,1.49692035,108840.0,108830.0,0.4427732]
[1751248042856,1.52722035,108840.0,108830.0,0.4427732]
[1751248047362,1.72792555,108840.0,108830.0,0.242068]
[1751248047562,1.76002555,108840.0,108830.0,0.4427732]
[1751248049563,1.55932035,108840.0,108830.0,0.4427732]
[1751248051362,1.76002555,108840.0,108830.0,0.4427732]
[1751248051961,1.06442555,108840.0,108830.0,0.4427732]
[1751248052162,1.54085784,108840.0,108830.0,0.4427732]
[1751248054464,1.54085784,108840.0,108830.0,0.242068]
[1751248054965,1.54085784,108840.0,108830.0,0.4427732]
[1751248055266,1.4673397,108840.0,108830.0,0.4427732]
[1751248055468,1.5408644,108840.0,108830.0,0.4427732]
[1751248056267,1.4673397,108840.0,108830.0,0.4427732]
[1751248057067,1.34016005,108840.0,108830.0,0.4427732]
[1751248057269,1.4673397,108840.0,108830.0,0.4427732]
[1751248060567,1.4673397,108840.0,108830.0,0.3797732]
[1751248060763,0.146968,108830.0,108820.0,0.5199091]
[1751248060965,0.81874687,108830.0,108810.0,0.48443603]
[1751248061272,1.0431267,108820.0,108810.0,0.88728813]
[1751248062069,1.0747267,108820.0,108810.0,0.88828813]
[1751248062770,1.0747267,108820.0,108810.0,0.89028813]
[1751248063366,1.0747267,108820.0,108810.0,0.89328813]
[1751248064564,0.8740215,108820.0,108810.0,0.89328813]
[1751248064964,1.0747267,108820.0,108810.0,0.89328813]
[1751248066471,1.0747267,108820.0,108810.0,0.69258293]
[1751248066669,1.0747267,108820.0,108810.0,0.89328813]
[1751248068374,1.0747267,108820.0,108810.0,0.69258293]
[1751248068571,1.0747267,108820.0,108810.0,0.89328813]
[1751248068872,0.8740215,108820.0,108810.0,0.89328813]
[1751248079089,0.8740215,108820.0,108810.0,0.69258293]
[1751248079393,0.8740215,108820.0,108810.0,0.89328813]
[1751248081792,0.8740215,108820.0,108810.0,0.69258293]
[1751248081987,1.0747267,108820.0,108810.0,0.69258293]
[1751248082291,0.9045215,108820.0,108810.0,0.89328813]
[1751248082790,1.1052267,108820.0,108810.0,0.89328813]
[1751248084589,1.1052267,108820.0,108810.0,0.33178293]
[1751248084893,1.4960267,108820.0,108810.0,0.44058813]
[1751248092090,1.56955667,108820.0,108810.0,0.44058813]
[1751248092495,1.77026187,108820.0,108810.0,0.20313583]
[1751248092789,1.77026187,108820.0,108810.0,0.40384103]
[1751248092994,1.77026187,108820.0,108810.0,0.05614073]
[1751248093193,1.77026187,108820.0,108810.0,0.041]
[1751248093495,1.56955667,108820.0,108810.0,0.3887002]
[1751248093699,1.77026187,108820.0,108810.0,0.3887002]
[1751248094089,1.77026187,108820.0,108810.0,0.187995]
[1751248094394,1.77026187,108820.0,108810.0,0.3887002]
[1751248095200,1.77026187,108820.0,108810.0,0.187995]
[1751248095394,1.56955667,108820.0,108810.0,0.3887002]
[1751248096899,1.58788735,108820.0,108810.0,0.3887002]
[1751248097299,1.58788735,108820.0,108810.0,0.2417052]
[1751248097996,1.58788735,108820.0,108810.0,0.041]
[1751248097997,1.5695187,108820.0,108810.0,0.041]
[1751248098204,1.7702239,108820.0,108810.0,0.041]
[1751248099001,1.78859255,108820.0,108810.0,0.041]
[1751248102107,1.86204445,108820.0,108810.0,0.041]
[1751248102296,1.7701838,108820.0,108810.0,0.041]
[1751248105208,0.1470087,108800.0,108790.0,0.55180096]
[1751248105402,1.0428339,108800.0,108790.0,0.55180096]
[1751248105602,1.0742339,108800.0,108790.0,0.55180096]
[1751248105806,1.0742339,108800.0,108790.0,0.51504596]
[1751248106302,0.8735287,108800.0,108790.0,0.31434076]
[1751248106606,0.8735287,108800.0,108790.0,0.51504596]
[1751248106807,0.8735287,108800.0,108790.0,0.52004596]
[1751248107101,1.0742339,108800.0,108790.0,0.52004596]
[1751248107308,1.6357391,108800.0,108790.0,0.00591916]
[1751248107509,1.6997391,108800.0,108790.0,0.00591916]
[1751248107695,0.1470357,108780.0,108770.0,0.28486832]
[1751248107902,1.0428609,108780.0,108770.0,0.54181182]
[1751248108509,1.41304218,108780.0,108770.0,0.5142636]
[1751248108907,0.1470492,108770.0,108760.0,0.21228162]
[1751248109206,0.7085544,108770.0,108760.0,0.47213493]
[1751248109407,1.2028892,108770.0,108760.0,0.67284013]
[1751248110005,1.4035944,108770.0,108760.0,0.47213493]
[1751248110200,1.4035944,108770.0,108760.0,0.44458671]
[1751248110406,1.4355944,108770.0,108760.0,0.44458671]
[1751248110710,1.4355944,108770.0,108760.0,0.44758671]
[1751248110910,1.2348892,108770.0,108760.0,0.30052461]
[1751248111204,1.4684944,108770.0,108760.0,0.00791941]
[1751248111403,1.5001944,108770.0,108760.0,0.00791941]
[1751248112110,0.1470628,108760.0,108750.0,0.00183945]
[1751248112311,1.3651428,108760.0,108750.0,0.00183945]
[1751248112512,1.95663169,108760.0,108750.0,0.00183945]
[1751248112811,1.77273569,108760.0,108750.0,0.00183945]
[1751248113610,1.465848,108760.0,108750.0,0.20254465]
[1751248113810,1.2651428,108760.0,108750.0,0.00183945]
[1751248114009,1.2681428,108760.0,108750.0,0.26794366]
[1751248114204,1.2691428,108760.0,108750.0,0.26794366]
[1751248114405,1.2691428,108760.0,108750.0,0.41501996]
[1751248114599,1.2389428,108760.0,108750.0,0.44701996]
[1751248114804,0.5438628,108760.0,108750.0,0.44701996]
[1751248115002,1.2390228,108760.0,108750.0,0.44701996]
[1751248115202,1.2390228,108760.0,108750.0,0.24601575]
[1751248116108,0.5118628,108760.0,108750.0,0.44701996]
[1751248116310,1.2069828,108760.0,108750.0,0.44701996]
[1751248116508,1.2069828,108760.0,108750.0,0.47456818]
[1751248117212,1.2069828,108760.0,108750.0,0.44701996]
[1751248119407,0.8461828,108760.0,108750.0,0.44701996]
[1751248122914,0.8461828,108760.0,108750.0,0.24601575]
[1751248123212,0.8461828,108760.0,108750.0,0.44701996]
[1751248133408,0.004,108760.0,108750.0,0.64802417]
[1751248133615,0.004,108760.0,108750.0,1.00882417]
[1751248134613,0.002,108760.0,108750.0,1.00882417]
[1751248134819,0.002,108760.0,108750.0,1.00982417]
[1751248135718,0.2051319,108770.0,108760.0,0.1470629]
[1751248135915,0.2051319,108770.0,108760.0,0.77086711]
[1751248137018,0.3561812,108770.0,108760.0,0.77086711]
[1751248137419,0.3561812,108770.0,108760.0,0.5698629]
[1751248137620,0.3561812,108770.0,108760.0,0.77086711]
[1751248138515,0.3561812,108770.0,108760.0,0.41006711]
[1751248138720,0.3561812,108770.0,108760.0,0.77086711]
[1751248139321,0.2827293,108770.0,108760.0,0.77086711]
[1751248140322,0.13568,108770.0,108760.0,0.77086711]
[1751248140523,0.2827293,108770.0,108760.0,0.77086711]